fUSD/lending_fUSD_20240331
["ID","MTS","AMOUNT","RATE_DAILY","PERIOD"]
[321073111,1711873831655,-420.68,0.00036563,2]
[321073112,1711873831667,-300.0,0.00036735,2]
[321073113,1711873831677,-350.0,0.00037,3]
[321073114,1711873831687,-370.37577138,0.00037866,4]
[321073115,1711873831707,-2225.11497792,0.00037866,4]
[321073116,1711873831717,-775.78,0.00038482,2]
[321073117,1711873831726,-480.1,0.00038484,2]
[321073118,1711873831736,-12.22279728,0.00038492,2]
[321073119,1711873831757,-17648.88720272,0.00038492,2]
[321073120,1711873831767,-180.31,0.000385,2]
[321073121,1711873831777,-233.55,0.000385,2]
[321073122,1711873831787,-154.25,0.00038517,15]
[321073123,1711873831798,-162.61146441,0.00038596,2]
[321073124,1711873831809,-169.15,0.00038607,2]
[321073125,1711873831818,-199.17,0.00038687,2]
[321073126,1711873831828,-199.17,0.00038793,2]
[321073127,1711873831838,-185.24,0.00038818,120]
[321073128,1711873831848,-420.68,0.00038827,2]
[321073129,1711873831858,-519.9,0.00038837,2]
[321073130,1711873831868,-281.84,0.00038898,2]
[321073131,1711873831878,-199.17,0.00038899,2]
[321073132,1711873831888,-527.99172177,0.00038959,2]
[321073133,1711873831900,-1946.93827823,0.00038959,2]
[321073134,1711873831910,-355.38,0.00038959,2]
[321073135,1711873831920,-400.0,0.00039,3]
[321073136,1711873831931,-199.17,0.00039005,2]
[321073137,1711873831941,-199.17,0.00039111,2]
[321073138,1711873831951,-199.17,0.00039217,2]
[321073139,1711873831961,-152.0,0.00039248,3]
[321073140,1711873831971,-363.355703,0.00039251,2]
[321073141,1711873831981,-199.17,0.00039323,2]
[321073142,1711873831991,-199.17,0.00039429,2]
[321073143,1711873832001,-113.87558058,0.000395,2]
[321073144,1711873832014,-918.11611034,0.000395,2]
[321073145,1711873832030,-2302.15014544,0.000395,2]
[321073146,1711873832043,-660.92885,0.000395,2]
[321073149,1711873832060,-6386.36324299,0.000395,2]
[321073151,1711873832069,-662.63675701,0.000395,40]
[321073153,1711873832085,-1580.4641515,0.000395,40]
[321073156,1711873832106,-637.11933616,0.000395,40]
[321073159,1711873832118,-7119.77975533,0.000395,40]
[321073161,1711873832128,-199.17,0.00039535,2]
[321073163,1711873832138,-157.31336065,0.00039565,7]
[321073176,1711873832370,-199.17,0.00039641,2]
[321073177,1711873832380,-302.407232,0.00039679,4]
[321073178,1711873832389,-3178.2172,0.0003968,2]
[321073179,1711873832399,-160.10324323,0.00039724,7]
[321073180,1711873832409,-363.355703,0.00039742,2]
[321073181,1711873832418,-199.17,0.00039748,2]
[321073182,1711873832428,-2072.95933851,0.0003978,2]
[321073183,1711873832438,-11496.81525827,0.000398,2]
[321073184,1711873832447,-199.17,0.00039854,2]
[321073185,1711873832456,-680.06373145,0.00039878,4]
[321073186,1711873832465,-218.85703448,0.00039878,4]
[321073187,1711873832475,-1215.10857904,0.00039878,4]
[321073188,1711873832485,-13515.15759266,0.00039878,4]
[321073189,1711873832494,-1957.26251234,0.00039878,4]
[321073190,1711873832504,-447.00526773,0.00039878,4]
[321073191,1711873832513,-2575.09599436,0.00039878,4]
[321073192,1711873832523,-157.65233835,0.00039878,4]
[321073193,1711873832533,-413.00594213,0.00039878,4]
[321073194,1711873832543,-324.62377507,0.00039878,4]
[321073195,1711873832553,-259.87950815,0.00039878,4]
[321073196,1711873832563,-8457.75154527,0.00039878,4]
[321073197,1711873832577,-155.97526314,0.00039879,4]
[321073198,1711873832587,-3556.92758185,0.00039879,4]
[321073199,1711873832596,-280.06570356,0.00039879,4]
[321073200,1711873832606,-67889.17204034,0.0003988,2]
[321073201,1711873832617,-659.13517,0.0003988,2]
[321073202,1711873832626,-477.70580285,0.000399,2]
[321073203,1711873832636,-259.9578,0.000399,2]
[321073204,1711873832647,-903.4589,0.000399,2]
[321073205,1711873832656,-199.17,0.0003996,2]
[321073206,1711873832666,-814.64935609,0.00039962,4]
[321073207,1711873832676,-500.0,0.00039967,10]
[321073208,1711873832686,-249.12141633,0.00039998,4]
[321073209,1711873832696,-261.29301243,0.00039998,4]
[321073210,1711873832706,-214.13590733,0.00039998,4]
[321073211,1711873832715,-1659.90773867,0.00039998,4]
[321073212,1711873832724,-207.68065277,0.00039998,4]
[321073213,1711873832734,-9517.55831826,0.00039999,4]
[321073214,1711873832743,-364.00897405,0.00039999,4]
[321073215,1711873832753,-1000.0,0.0004,30]
[321073216,1711873832763,-5812.87502323,0.0004,2]
[321073217,1711873832773,-2311.99636522,0.0004,2]
[321073221,1711873837652,-23526.00363478,0.0004,2]
[321073222,1711873837663,-2032.0,0.0004,2]
[321073223,1711873837673,-115.52902121,0.0004,3]
[321073224,1711873837710,-7082.10209964,0.0004,3]
[321073225,1711873837769,-5000.0,0.0004,3]
[321073281,1711873839908,-694.84463342,0.0004,3]
[321073282,1711873839919,-2463.69873885,0.0004,3]
[321073283,1711873839930,-268.52205099,0.0004,3]
[321073310,1711873843304,-6319.72585048,0.0004,3]
[321073311,1711873843316,-4477.87129553,0.0004,3]
[321073312,1711873843331,-867.31387263,0.0004,3]
[321073313,1711873843404,-2707.61828503,0.0004,3]
[321073314,1711873843576,-30002.77415222,0.0004,3]
[321073315,1711873843585,-165.19176325,0.00040015,30]
[321073316,1711873843594,-2072.95933843,0.00040016,2]
[321073317,1711873843603,-11496.81525827,0.00040033,2]
[321073318,1711873843615,-1453.65841866,0.00040037,2]
[321073319,1711873843624,-199.17,0.00040066,2]
[321073320,1711873843633,-200.0,0.00040116,15]
[321073321,1711873843642,-162.94951104,0.00040167,9]
[321073322,1711873843652,-199.17,0.00040172,2]
[321073323,1711873843664,-166.39505918,0.00040226,30]
[321073324,1711873843673,-363.355703,0.00040232,2]
[321073325,1711873843682,-2072.95933843,0.00040251,2]
[321073326,1711873843692,-11496.81525827,0.00040267,2]
[321073327,1711873843701,-199.17,0.00040278,2]
[321073328,1711873843710,-199.17,0.00040384,2]
[321073329,1711873843719,-156.41895585,0.00040391,30]
[321073330,1711873843728,-154.28950349,0.00040397,30]
[321073331,1711873843739,-400.0,0.000404,14]
[321073332,1711873843748,-2072.95933843,0.00040487,2]
[321073333,1711873843758,-150.0,0.00040487,120]
[321073334,1711873843767,-199.17,0.0004049,2]
[321073335,1711873843776,-11496.81525827,0.000405,2]
[321073336,1711873843785,-800.0,0.000405,14]
[321073337,1711873843794,-199.17,0.00040596,2]
[321073338,1711873843803,-1200.0,0.000406,14]
[321073339,1711873843813,-835.0,0.0004066,7]
[321073340,1711873843821,-200.0,0.00040671,15]
[321073341,1711873843830,-800.0,0.00040671,15]
[321073342,1711873843839,-500.0,0.00040671,20]
[321073343,1711873843848,-200.0,0.00040671,20]
[321073344,1711873843858,-511.0,0.00040685,7]
[321073345,1711873843867,-9705.60878969,0.000407,5]
[321073346,1711873843876,-3712.67000099,0.000407,2]
[321073347,1711873843885,-1700.0,0.000407,14]
[321073348,1711873843895,-199.17,0.00040703,2]
[321073349,1711873843904,-2072.95933843,0.00040722,2]
[321073350,1711873843913,-363.355703,0.00040723,2]
[321073351,1711873843922,-151.92,0.00040732,2]
[321073352,1711873843931,-150.0,0.00040732,2]
[321073353,1711873843940,-11496.81525827,0.00040733,2]
[321073354,1711873843950,-428.6403,0.00040794,2]
[321073355,1711873843959,-156.03835975,0.00040798,4]
[321073356,1711873843968,-155.2991659,0.00040798,4]
[321073357,1711873843977,-153.96272275,0.000408,9]
[321073358,1711873843986,-162.61146441,0.000408,2]
[321073359,1711873843996,-2100.0,0.000408,14]
[321073360,1711873844005,-213.88578685,0.00040858,13]
[321073361,1711873844015,-150.8,0.0004089,2]
[321073362,1711873844024,-7500.0,0.000409,2]
[321073363,1711873844034,-212.0,0.000409,2]
[321073364,1711873844043,-2246.58595238,0.000409,15]
[321073365,1711873844052,-1254772.06756962,0.000409,2]
[321073366,1711873844062,-400.0,0.000409,14]
[321073367,1711873844071,-6638.05485025,0.000409,2]
[321073368,1711873844080,-1040.22410428,0.000409,2]
[321073369,1711873844089,-394.36498904,0.000409,2]
[321073370,1711873844099,-233.58232223,0.000409,2]
[321073371,1711873844109,-2072.95933843,0.00040958,2]
[321073372,1711873844118,-11496.81525827,0.00040967,2]
[321073373,1711873844127,-150.5,0.0004097,15]
[321073374,1711873844137,-156.0,0.0004097,15]
[321073375,1711873844146,-256.0,0.0004097,15]
[321073376,1711873844156,-150.8,0.00040976,2]
[321073377,1711873844166,-424.19093922,0.00040978,4]
[321073378,1711873844175,-150.5,0.0004098,15]
[321073379,1711873844184,-156.0,0.0004098,15]
[321073380,1711873844193,-256.0,0.0004098,15]
[321073381,1711873844203,-1966.21,0.0004098,5]
[321073382,1711873844212,-383.0,0.00040986,4]
[321073383,1711873844221,-1283.0,0.00040986,4]
[321073384,1711873844231,-19516.0,0.00040986,4]
[321073385,1711873844240,-7689.0,0.00040986,4]
[321073386,1711873844250,-87737.0,0.00040986,4]
[321073387,1711873844260,-150.5,0.0004099,15]
[321073388,1711873844270,-156.0,0.0004099,15]
[321073389,1711873844279,-256.0,0.0004099,15]
[321073390,1711873844290,-150.8,0.0004099,2]
[321073391,1711873844300,-150.8,0.0004099,2]
[321073392,1711873844309,-150.8,0.0004099,2]
[321073393,1711873844318,-150.01,0.00040998,2]
[321073394,1711873844328,-5019.79504593,0.00040998,2]
[321073395,1711873844337,-155.46549033,0.00040998,4]
[321073396,1711873844346,-640.10478087,0.00040998,4]
[321073397,1711873844357,-198.69540962,0.00040998,4]
[321073398,1711873844367,-221.07805099,0.00040998,4]
[321073399,1711873844376,-155.52274907,0.00040998,4]
[321073400,1711873844386,-190.38449052,0.00040998,4]
[321073401,1711873844396,-807.48793409,0.00040998,4]
[321073402,1711873844405,-156.51158483,0.00040998,4]
[321073403,1711873844415,-655.89481814,0.00040998,2]
[321073404,1711873844425,-416.00223062,0.00040998,4]
[321073405,1711873844434,-155.45106949,0.00040998,2]
[321073406,1711873844443,-155.43953231,0.00040998,4]
[321073407,1711873844455,-203.93852806,0.00040998,4]
[321073408,1711873844465,-156.03530537,0.00040998,4]
[321073409,1711873844473,-261.18746714,0.00040998,4]
[321073410,1711873844482,-339.81142002,0.00040999,4]
[321073411,1711873844491,-1000.0,0.00040999,120]
[321073412,1711873844500,-1299.72215487,0.00040999,30]
[321073413,1711873844509,-23256.83120177,0.00041,3]
[321073414,1711873844522,-218896.59205461,0.00041,3]
[321073415,1711873844531,-176.44171235,0.00041,3]
[321073416,1711873844541,-144044.86494635,0.00041,5]
[321073418,1711873845705,-718.81625946,0.00040899,4]
[321073420,1711873845714,-46399.48358697,0.00041,5]
[321073427,1711873845868,-6561.23247747,0.00041,5]
[321073428,1711873845880,-33185.33943499,0.00041,5]
[321073429,1711873845932,-1223.07922261,0.00041,5]
[321073430,1711873845943,-69743.00000005,0.00041,5]
[321073431,1711873846159,-1324.8,0.00041,5]
[321073440,1711873939870,1028.0,0.00041858,30]
[321073441,1711873950458,1046.26635049,0.00041858,30]
[321073442,1711874229914,1000.0,0.00041855,120]
[321073445,1711874536151,250.0,0.00033,3]
[321073446,1711874537234,300.0,0.00035,3]
[321073447,1711874609740,234.87423799,0.00036094,2]
[321073448,1711874668996,-605.97477837,0.00036191,4]
[321073449,1711874669018,-599.01354955,0.00036192,4]
[321073450,1711874669039,-196.0,0.000362,3]
[321073451,1711874669062,-350.0,0.00037,3]
[321073453,1711874704833,150.0,0.00034548,10]
[321073454,1711874741157,-154.25,0.00039275,15]
[321073455,1711874768404,681.07167627,0.00034548,4]
[321073456,1711874771147,851.6036423,0.00036889,4]
[321073460,1711874837495,165.52512877,0.00036914,7]
[321073461,1711874842462,153.92870743,0.00036087,7]
[321073463,1711874876438,723.98,0.00038265,15]
[321073471,1711875032908,-155.0,0.00037419,4]
[321073472,1711875032918,-419.30948468,0.0003742,4]
[321073473,1711875032928,-605.97477837,0.00037421,4]
[321073474,1711875032942,-182.74077982,0.00037424,2]
[321073475,1711875032951,-4525.08142729,0.0003752,4]
[321073476,1711875032962,-420.44,0.0003753,2]
[321073477,1711875032971,-157.31336065,0.00037613,7]
[321073478,1711875032982,-153.71574397,0.00037705,7]
[321073479,1711875032992,-158.65554271,0.00037714,7]
[321073480,1711875033001,-160.10324323,0.00038227,7]
[321073481,1711875033011,-157.31336065,0.0003826,7]
[321073482,1711875033022,-157.31336065,0.00038265,7]
[321073483,1711875033032,-156.41895585,0.00038568,7]
[321073484,1711875033042,-167.0,0.00038954,2]
[321073485,1711875033051,-340.35,0.00038972,2]
[321073486,1711875033061,-281.29,0.00038986,2]
[321073487,1711875033070,-162.47163143,0.00038992,7]
[321073488,1711875033080,-786.45,0.00038998,2]
[321073489,1711875033089,-400.0,0.00039,3]
[321073490,1711875033100,-1301.22,0.00039037,2]
[321073491,1711875033110,-150.0,0.00039109,2]
[321073492,1711875033121,-200.0,0.00039205,2]
[321073493,1711875033130,-250.0,0.0003923,2]
[321073494,1711875033140,-1792.46,0.00039246,2]
[321073495,1711875033150,-5338.13421104,0.00039285,2]
[321073496,1711875033290,-3841.82267398,0.00039285,2]
[321073498,1711875033314,-1820.96634837,0.00039285,2]
[321073501,1711875033421,-6337.66676661,0.00039285,2]
[321073502,1711875033430,-384.08,0.00039296,2]
[321073503,1711875033440,-200.0,0.00039319,2]
[321073504,1711875033450,-127.15323339,0.00039364,2]
[321073505,1711875033465,-454.999985,0.00039364,2]
[321073506,1711875037964,-499.99,0.0003826,2]
[321073507,1711875037975,-1172.50678161,0.00039364,2]
[321073508,1711875037985,-150.25,0.0003938,2]
[321073509,1711875037995,-890.53,0.00039403,2]
[321073510,1711875038005,-7569.56,0.00039472,2]
[321073511,1711875038015,-157.31336065,0.00039566,7]
[321073512,1711875038027,-156.51,0.00039569,2]
[321073513,1711875038037,-156.41895585,0.00039595,7]
[321073514,1711875038047,-420.44,0.00039794,2]
[321073515,1711875038057,-500.0,0.00039967,10]
[321073516,1711875038066,-156.51,0.00039981,2]
[321073517,1711875038076,-160.10324323,0.00040011,30]
[321073518,1711875038086,-154.28950349,0.00040287,30]
[321073519,1711875038095,-156.51,0.00040394,2]
[321073520,1711875038105,-167.89,0.00040565,2]
[321073521,1711875038115,-549.27931,0.0004059,5]
[321073522,1711875038125,-200.0,0.00040671,15]
[321073523,1711875038135,-800.0,0.00040671,15]
[321073524,1711875038145,-500.0,0.00040671,20]
[321073525,1711875038156,-156.51,0.00040806,2]
[321073536,1711875038385,-1074.23724674,0.00040897,3]
[321073539,1711875038397,-5678.26245815,0.00040897,2]
[321073541,1711875038407,-829.18373539,0.00040897,2]
[321073543,1711875038417,-5349.7675,0.00040898,2]
[321073545,1711875038426,-2262.05728135,0.000409,15]
[321073546,1711875038435,-7500.0,0.000409,2]
[321073547,1711875038444,-153.96272275,0.000409,10]
[321073548,1711875038453,-162.94951104,0.000409,10]
[321073549,1711875038462,-453.90803786,0.000409,2]
[321073550,1711875038471,-693.48273618,0.000409,2]
[321073551,1711875038480,-155.72154816,0.000409,2]
[321073552,1711875038489,-262.9099927,0.000409,2]
[321073553,1711875038497,-166.39505918,0.00040935,30]
[321073554,1711875038507,-150.5,0.0004097,15]
[321073555,1711875038516,-179.0,0.0004097,15]
[321073557,1711875038526,-150.5,0.0004098,15]
[321073559,1711875038536,-179.0,0.0004098,15]
[321073561,1711875038545,-1155.54792064,0.00040988,5]
[321073563,1711875038555,-185.46367257,0.00040988,2]
[321073565,1711875038566,-738.12280143,0.00040988,4]
[321073567,1711875038575,-435.60504467,0.00040988,4]
[321073569,1711875038585,-169.3620795,0.00040989,4]
[321073571,1711875038596,-2348.45796256,0.00040989,4]
[321073573,1711875038605,-150.5,0.0004099,15]
[321073575,1711875038614,-179.0,0.0004099,15]
[321073577,1711875038624,-25832.15525995,0.0004099,2]
[321073584,1711875038681,-1122.94407473,0.0004099,2]
[321073594,1711875038764,-8005.93146761,0.0004099,2]
[321073747,1711875041806,-692.73,0.00040145,2]
[321073748,1711875041816,-4425.36990018,0.000409,2]
[321073749,1711875041825,-34770.57475875,0.0004099,2]
[321073750,1711875042275,-32825.52826133,0.0004099,2]
[321073751,1711875042285,-150.81,0.0004099,2]
[321073752,1711875042296,-156.88396311,0.00040997,4]
[321073753,1711875042306,-249.9491637,0.00040997,4]
[321073754,1711875042315,-156.31222891,0.00040997,4]
[321073755,1711875042324,-150.01,0.00040997,2]
[321073756,1711875042334,-5019.79504593,0.00040997,2]
[321073757,1711875042344,-94191.70266031,0.00040997,2]
[321073758,1711875042355,-405.43595883,0.00040998,4]
[321073759,1711875042364,-319.45413673,0.00040999,4]
[321073760,1711875042374,-5064.65698516,0.00040999,2]
[321073761,1711875042383,-181615.06744228,0.00041,3]
[321073762,1711875042393,-64756.85898812,0.00041,5]
[321073765,1711875043082,-25952.48864144,0.00041,5]
[321073814,1711875046165,-156.51,0.0004058,2]
[321073815,1711875046176,-150.01,0.00040997,2]
[321073816,1711875046185,-3328.82498015,0.00041,5]
[321073819,1711875069908,56246.88251731,0.00025,2]
[321073820,1711875069929,172547.54034017,0.00025,2]
[321073821,1711875117464,178.94386657,0.00025,2]
[321073822,1711875137380,214.01543254,0.00025,2]
[321073824,1711875195857,10600.0,0.000393,15]
[321073825,1711875208242,97810.98676322,0.0003,2]
[321073828,1711875239214,150.0,0.00025,2]
[321073829,1711875239235,150.0,0.00025,2]
[321073830,1711875239255,150.0,0.00025,2]
[321073831,1711875239275,150.0,0.00025,2]
[321073832,1711875239295,150.0,0.00025,2]
[321073833,1711875239315,287.15461961,0.00025,2]
[321073834,1711875239337,317966.14798114,0.00025,2]
[321073837,1711875281178,1449.72457951,0.0003,10]
[321073838,1711875297129,676.9636427,0.00025,10]
[321073839,1711875304174,159.39,0.00038769,15]
[321073840,1711875336304,210.61,0.000393,15]
[321073841,1711875434551,53753.54821838,0.0003,30]
[321073842,1711875434581,74035.84178162,0.0003,30]
[321073843,1711875621598,370.29838165,0.00041855,30]
[321073867,1711876164184,-419.30948468,0.00030651,4]
[321073868,1711876164215,-170.67,0.00030652,2]
[321073869,1711876164245,-155.0,0.00031387,4]
[321073870,1711876164278,-530.55108814,0.00031388,4]
[321073871,1711876164318,-419.30948468,0.00031391,2]
[321073872,1711876164330,-170.67,0.00031391,2]
[321073873,1711876164342,-155.0,0.00031391,2]
[321073874,1711876164353,-530.55108814,0.00031391,2]
[321073875,1711876164365,-1083.42655578,0.00031391,2]
[321073876,1711876164374,-565.51229858,0.00031391,4]
[321073882,1711876205476,-52.03464058,0.00031391,4]
[321073900,1711876232210,-462.0,0.00036,3]
[321073901,1711876232219,-191.39999999,0.00036068,7]
[321073902,1711876232229,-469.17,0.00036405,2]
[321073903,1711876232238,-509.8605895,0.00037,4]
[321073911,1711876238177,-3463.17828077,0.00037,4]
[321073912,1711876238396,-366.16948021,0.00037,4]
[321073950,1711876240142,-444.30627763,0.00037,4]
[321073952,1711876240152,-210.3179,0.00037324,2]
[321073954,1711876240161,-419.30948468,0.00038119,4]
[321073956,1711876240171,-1000.0,0.0003812,2]
[321073958,1711876240180,-860.40764367,0.00038315,2]
[321073960,1711876240191,-464.90567364,0.00038315,2]
[321073963,1711876240202,-1000.0,0.00038315,2]
[321074044,1711876242768,-330.27934427,0.00038315,2]
[321074045,1711876242779,-495.56476405,0.00038315,2]
[321074046,1711876242930,-12147.06257437,0.00038315,2]
[321074047,1711876242940,-159.39,0.00038396,15]
[321074048,1711876242950,-832.14,0.00038516,2]
[321074049,1711876242959,-200.0,0.00038522,2]
[321074050,1711876242968,-150.25,0.00038552,2]
[321074051,1711876242978,-469.17,0.00038669,2]
[321074052,1711876242987,-157.31336065,0.00038691,7]
[321074053,1711876242996,-156.51,0.00038787,2]
[321074055,1711876243005,-1582.04,0.00038843,2]
[321074057,1711876243015,-160.10324323,0.00038891,7]
[321074059,1711876243024,-499.99,0.00038891,2]
[321074061,1711876243033,-152.0,0.00039248,3]
[321074063,1711876243043,-202.6989,0.0003978,2]
[321074066,1711876243052,-2073.55250795,0.00039845,13]
[321074067,1711876243062,-668.51075003,0.00039845,2]
[321074068,1711876243100,-77.75461183,0.00039845,2]
[321074069,1711876243110,-153.96272275,0.00039845,6]
[321074070,1711876243120,-159.23,0.0003987,2]
[321074071,1711876243129,-159.23,0.0003987,2]
[321074072,1711876243138,-159.23,0.0003987,2]
[321074073,1711876243147,-159.23,0.0003987,2]
[321074074,1711876243156,-155.0,0.00039877,4]
[321074075,1711876243167,-155.49601435,0.00039878,4]
[321074076,1711876243176,-486.36160265,0.00039878,2]
[321074077,1711876243186,-155.51803474,0.00039878,4]
[321074078,1711876243195,-775.67608756,0.00039878,4]
[321074079,1711876243205,-310.0,0.00039878,4]
[321074080,1711876243215,-806.18760338,0.00039878,4]
[321074081,1711876243224,-360.83535144,0.00039878,4]
[321074082,1711876243234,-403.0427117,0.00039878,2]
[321074083,1711876243245,-1102.04624717,0.00039878,2]
[321074084,1711876243257,-1054.47713702,0.00039878,2]
[321074085,1711876243274,-27576.65562011,0.00039878,2]
[321074086,1711876243293,-35175.0,0.00039878,2]
[321074087,1711876243386,-2017.6694089,0.00039878,2]
[321074088,1711876243399,-30990.26035226,0.00039878,2]
[321074089,1711876243408,-100683.86393843,0.0003988,2]
[321074090,1711876243442,-2774.82333777,0.0003988,2]
[321074091,1711876243560,-3609.60482592,0.0003988,2]
[321074141,1711876246117,-18455.62760932,0.0003988,2]
[321074142,1711876246253,-7034.09980964,0.0003988,2]
[321074143,1711876246272,-464.50998446,0.0003988,2]
[321074144,1711876246294,-30177.70023088,0.0003988,2]
[321074145,1711876246305,-6970.89010775,0.0003988,2]
[321074146,1711876246333,-1128416.25620899,0.0003988,2]
[321074147,1711876246344,-233.01,0.00039946,2]
[321074148,1711876246354,-20079.9285522,0.0003999,2]
[321074149,1711876246363,-5751.13615902,0.0004,4]
[321074150,1711876246374,-772.09143929,0.0004,14]
[321074151,1711876246382,-150.82,0.0004,2]
[321074152,1711876246392,-746.26536183,0.00040073,2]
[321074153,1711876246401,-43032.0,0.00040288,2]
[321074154,1711876246410,-2496.663,0.00040288,2]
[321074155,1711876246420,-535.848,0.00040288,2]
[321074156,1711876246429,-746.26536183,0.00040302,2]
[321074157,1711876246439,-160.10324323,0.00040359,30]
[321074158,1711876246448,-157.31336065,0.00040395,30]
[321074159,1711876246458,-2073.55250788,0.00040423,14]
[321074160,1711876246467,-1491.2938486,0.00040479,2]
[321074161,1711876246476,-746.26536183,0.0004053,2]
[321074162,1711876246485,-162.85775373,0.00040589,2]
[321074163,1711876246494,-457.73276,0.0004059,5]
[321074164,1711876246504,-800.0,0.00040671,15]
[321074165,1711876246513,-186.5973902,0.00040747,2]
[321074166,1711876246523,-746.26536183,0.00040758,2]
[321074167,1711876246533,-5720.0,0.000408,2]
[321074168,1711876246542,-153.71574397,0.00040803,30]
[321074169,1711876246551,-1491.2938486,0.00040811,2]
[321074170,1711876246560,-21437.0388,0.0004089,2]
[321074171,1711876246569,-34422.5216,0.00040897,2]
[321074172,1711876246578,-4765.2932,0.000409,2]
[321074173,1711876246588,-155.72154815,0.000409,2]
[321074174,1711876246597,-462.32182412,0.000409,2]
[321074175,1711876246606,-175.27332846,0.000409,2]
[321074176,1711876246616,-469.17,0.00040933,2]
[321074177,1711876246626,-150.5,0.0004097,15]
[321074178,1711876246635,-150.5,0.0004098,15]
[321074179,1711876246645,-254.28077187,0.00040986,7]
[321074180,1711876246654,-150.0,0.00040986,7]
[321074181,1711876246663,-150.59565821,0.00040986,7]
[321074183,1711876246672,-150.0,0.00040986,7]
[321074185,1711876246682,-150.33536953,0.00040986,7]
[321074187,1711876246691,-150.0,0.00040986,7]
[321074189,1711876246700,-150.0,0.00040986,7]
[321074191,1711876246709,-150.0,0.00040986,7]
[321074193,1711876246718,-150.0,0.00040986,7]
[321074195,1711876246728,-291.88482979,0.00040986,7]
[321074197,1711876246737,-746.26536183,0.00040987,2]
[321074199,1711876246747,-159.23,0.0004099,2]
[321074201,1711876246757,-150.5,0.0004099,15]
[321074203,1711876246766,-159.23,0.0004099,2]
[321074205,1711876246775,-795.03204337,0.00040996,4]
[321074206,1711876246785,-150.01,0.00040998,2]
[321074208,1711876246795,-300.41284419,0.00040998,4]
[321074209,1711876246804,-388.62275516,0.00040998,2]
[321074211,1711876246814,-244.435528,0.00040999,4]
[321074213,1711876246823,-672.33586176,0.00040999,4]
[321074215,1711876246832,-136211.30058171,0.00041,3]
[321074216,1711876246841,-125222.86491271,0.00041,5]
[321074217,1711876246858,-787.30992977,0.00041,5]
[321074218,1711876246877,-645.0,0.00041,5]
[321074219,1711876246938,-2161.6166915,0.00041,5]
[321074220,1711876265181,150.0,0.00031391,4]
[321074221,1711876265205,138.61270118,0.00031391,4]
[321074222,1711876597317,150.0,0.00031131,2]
[321074223,1711876597336,13.56,0.00031131,2]
[321074224,1711876626792,136.44,0.00031039,2]
[321074225,1711876626812,34.23,0.00031039,2]
[321074226,1711876715752,331.76264448,0.00041842,30]
[321074274,1711877433110,-414.0,0.00032495,2]
[321074275,1711877433119,-419.30948468,0.00032797,4]
[321074276,1711877433129,-162.84838969,0.00032798,2]
[321074277,1711877433138,-504.19388398,0.000329,2]
[321074278,1711877433148,-803.60716106,0.00032999,4]
[321074279,1711877433158,-250.0,0.00033,3]
[321074280,1711877433167,-162.84838963,0.00033811,2]
[321074281,1711877433176,-162.84838963,0.00034824,2]
[321074282,1711877433186,-650.86,0.00034824,2]
[321074283,1711877433196,-300.0,0.00035,3]
[321074284,1711877433205,-165.5,0.00035,2]
[321074285,1711877433214,-162.84838963,0.00035836,2]
[321074286,1711877433223,-240.0,0.000362,3]
[321074287,1711877433232,-160.10324325,0.00036255,7]
[321074288,1711877433241,-432.02,0.00036391,2]
[321074289,1711877433250,-156.31220759,0.0003649,7]
[321074290,1711877433260,-162.84838963,0.00036849,2]
[321074291,1711877433269,-157.31336065,0.00036949,7]
[321074292,1711877433279,-350.0,0.00037,3]
[321074293,1711877433289,-1392.44,0.00037838,2]
[321074294,1711877433299,-162.84838963,0.00037862,2]